fUSD/lending_fUSD_20250116
["ID","MTS","AMOUNT","RATE_DAILY","PERIOD"]
[349157915,1736997087769,-500.0,0.00043013,18]
[349157916,1736997087778,-500.0,0.00043013,18]
[349157917,1736997087788,-2728.3,0.00043013,18]
[349157918,1736997087798,-500.0,0.00043013,18]
[349157919,1736997087807,-2728.3,0.00043013,18]
[349157920,1736997087817,-3.31840674,0.00043013,18]
[349157921,1736997087835,-496.68159326,0.00043013,18]
[349157922,1736997087846,-500.0,0.00043013,18]
[349157923,1736997087855,-2728.3,0.00043013,18]
[349157924,1736997087865,-500.0,0.00043013,18]
[349157925,1736997087875,-500.0,0.00043013,18]
[349157926,1736997087884,-2728.3,0.00043013,18]
[349157927,1736997087894,-500.0,0.00043013,18]
[349157928,1736997087906,-500.0,0.00043013,18]
[349157929,1736997087916,-2728.3,0.00043013,18]
[349157930,1736997087926,-500.0,0.00043013,18]
[349157931,1736997087938,-500.0,0.00043013,18]
[349157932,1736997087947,-500.0,0.00043013,18]
[349157933,1736997087957,-500.0,0.00043013,18]
[349157934,1736997087967,-500.0,0.00043013,18]
[349157935,1736997087976,-500.0,0.00043013,18]
[349157936,1736997087986,-2728.3,0.00043013,18]
[349157937,1736997087995,-500.0,0.00043013,18]
[349157938,1736997088005,-2728.3,0.00043013,18]
[349157939,1736997088014,-42.64044902,0.00043013,18]
[349157940,1736997088068,-457.35955098,0.00043013,18]
[349157941,1736997088077,-2728.3,0.00043013,18]
[349157942,1736997088087,-500.0,0.00043013,18]
[349157943,1736997088098,-2728.3,0.00043013,18]
[349157944,1736997088108,-500.0,0.00043013,18]
[349157945,1736997088117,-2728.3,0.00043013,18]
[349157946,1736997088127,-500.0,0.00043013,18]
[349157947,1736997088137,-2728.3,0.00043013,18]
[349157948,1736997088159,-500.0,0.00043013,18]
[349157949,1736997088175,-2728.3,0.00043013,18]
[349157950,1736997088195,-2728.3,0.00043013,18]
[349157951,1736997088214,-591.68,0.00043013,18]
[349157952,1736997088229,-2728.3,0.00043013,18]
[349157953,1736997088249,-591.68,0.00043013,18]
[349157954,1736997088269,-1799.19,0.00043013,18]
[349157955,1736997088289,-591.68,0.00043013,18]
[349157956,1736997088307,-1799.19,0.00043013,18]
[349157957,1736997088326,-591.68,0.00043013,18]
[349157958,1736997088345,-1799.19,0.00043013,18]
[349157959,1736997088359,-591.68,0.00043013,18]
[349157960,1736997088380,-1059.42149904,0.00043013,18]
[349157961,1736997088396,-739.76850096,0.00043013,18]
[349157962,1736997088414,-591.68,0.00043013,18]
[349157963,1736997088427,-1799.19,0.00043013,18]
[349157964,1736997088442,-591.68,0.00043013,18]
[349157965,1736997088458,-1799.19,0.00043013,18]
[349157966,1736997088472,-591.68,0.00043013,18]
[349157967,1736997088488,-1799.19,0.00043013,18]
[349157968,1736997088503,-591.68,0.00043013,18]
[349157969,1736997088518,-500.0,0.00043013,18]
[349157970,1736997088534,-1799.19,0.00043013,18]
[349157971,1736997088549,-500.0,0.00043013,18]
[349157972,1736997088560,-591.68,0.00043013,18]
[349157973,1736997088572,-1799.19,0.00043013,18]
[349157974,1736997088581,-500.0,0.00043013,18]
[349157975,1736997088591,-591.68,0.00043013,18]
[349157976,1736997088600,-1799.19,0.00043013,18]
[349157977,1736997088610,-500.0,0.00043013,18]
[349157978,1736997088620,-591.68,0.00043013,18]
[349157979,1736997088630,-1799.19,0.00043013,18]
[349157980,1736997088639,-500.0,0.00043013,18]
[349157981,1736997088649,-591.68,0.00043013,18]
[349157982,1736997088659,-500.0,0.00043013,18]
[349157983,1736997088668,-1799.19,0.00043013,18]
[349157984,1736997088678,-500.0,0.00043013,18]
[349157985,1736997088688,-504.64499741,0.00043013,18]
[349157986,1736997088698,-591.68,0.00043013,18]
[349157987,1736997088708,-1799.19,0.00043013,18]
[349157988,1736997088717,-500.0,0.00043013,18]
[349157989,1736997088727,-1799.19,0.00043013,18]
[349157990,1736997088737,-500.0,0.00043013,18]
[349157991,1736997088747,-500.0,0.00043013,18]
[349157992,1736997088756,-500.0,0.00043013,18]
[349157993,1736997088766,-500.0,0.00043013,18]
[349157994,1736997088776,-2487.26,0.00043013,18]
[349157995,1736997088786,-500.0,0.00043013,18]
[349157996,1736997088795,-500.0,0.00043013,18]
[349157997,1736997088804,-500.0,0.00043013,18]
[349157998,1736997088814,-2487.26,0.00043013,18]
[349157999,1736997088823,-500.0,0.00043013,18]
[349158000,1736997088833,-2487.26,0.00043013,18]
[349158001,1736997088842,-787.31,0.00043013,18]
[349158002,1736997088852,-500.0,0.00043013,18]
[349158003,1736997088861,-2487.26,0.00043013,18]
[349158004,1736997088870,-787.31,0.00043013,18]
[349158005,1736997088879,-500.0,0.00043013,18]
[349158006,1736997089132,-500.0,0.00043013,18]
[349158007,1736997089148,-2487.26,0.00043013,18]
[349158008,1736997089160,-787.31,0.00043013,18]
[349158009,1736997089170,-500.0,0.00043013,18]
[349158010,1736997089179,-787.31,0.00043013,18]
[349158011,1736997089188,-2487.26,0.00043013,18]
[349158012,1736997089198,-500.0,0.00043013,18]
[349158013,1736997089208,-501.64277066,0.00043013,18]
[349158014,1736997089217,-2487.26,0.00043013,18]
[349158015,1736997089227,-500.0,0.00043013,18]
[349158016,1736997089236,-787.31,0.00043013,18]
[349158017,1736997089245,-2487.26,0.00043013,18]
[349158018,1736997089256,-500.0,0.00043013,18]
[349158019,1736997089265,-787.31,0.00043013,18]
[349158020,1736997089275,-2487.26,0.00043013,18]
[349158021,1736997089288,-500.0,0.00043013,18]
[349158022,1736997089297,-500.0,0.00043013,18]
[349158023,1736997089307,-787.31,0.00043013,18]
[349158024,1736997089317,-2487.26,0.00043013,18]
[349158025,1736997089327,-500.0,0.00043013,18]
[349158026,1736997089336,-500.0,0.00043013,18]
[349158027,1736997089345,-787.31,0.00043013,18]
[349158028,1736997089355,-2487.26,0.00043013,18]
[349158029,1736997089364,-500.0,0.00043013,18]
[349158030,1736997089373,-500.0,0.00043013,18]
[349158031,1736997089382,-787.31,0.00043013,18]
[349158032,1736997089392,-2487.26,0.00043013,18]
[349158033,1736997089401,-500.0,0.00043013,18]
[349158034,1736997089410,-2487.26,0.00043013,18]
[349158035,1736997089423,-500.0,0.00043013,18]
[349158036,1736997089432,-787.31,0.00043013,18]
[349158037,1736997089442,-596.71,0.00043013,18]
[349158038,1736997089453,-2487.26,0.00043013,18]
[349158039,1736997089462,-500.0,0.00043013,18]
[349158040,1736997089473,-787.31,0.00043013,18]
[349158041,1736997089485,-596.71,0.00043013,18]
[349158042,1736997089499,-500.0,0.00043013,18]
[349158043,1736997089509,-500.0,0.00043013,18]
[349158044,1736997089518,-500.0,0.00043013,18]
[349158045,1736997089527,-787.31,0.00043013,18]
[349158046,1736997089538,-596.71,0.00043013,18]
[349158047,1736997089548,-500.0,0.00043013,18]
[349158048,1736997089558,-502.76758976,0.00043013,18]
[349158049,1736997089569,-787.31,0.00043013,18]
[349158050,1736997089579,-500.0,0.00043013,18]
[349158051,1736997089588,-596.71,0.00043013,18]
[349158052,1736997089597,-500.0,0.00043013,18]
[349158053,1736997089607,-787.31,0.00043013,18]
[349158054,1736997089616,-500.0,0.00043013,18]
[349158055,1736997089625,-596.71,0.00043013,18]
[349158056,1736997089635,-500.0,0.00043013,18]
[349158057,1736997089644,-596.71,0.00043013,18]
[349158058,1736997089654,-500.0,0.00043013,18]
[349158059,1736997089664,-512.4809865,0.00043013,18]
[349158060,1736997089673,-500.0,0.00043013,18]
[349158061,1736997089683,-500.0,0.00043013,18]
[349158062,1736997089692,-596.71,0.00043013,18]
[349158063,1736997089702,-500.0,0.00043013,18]
[349158064,1736997089711,-596.71,0.00043013,18]
[349158065,1736997089721,-500.0,0.00043013,18]
[349158066,1736997089730,-500.0,0.00043013,18]
[349158067,1736997089740,-596.71,0.00043013,18]
[349158068,1736997089749,-500.0,0.00043013,18]
[349158069,1736997089758,-500.0,0.00043013,18]
[349158070,1736997089768,-500.0,0.00043013,18]
[349158071,1736997089777,-500.0,0.00043013,18]
[349158072,1736997089787,-596.71,0.00043013,18]
[349158073,1736997089797,-500.0,0.00043013,18]
[349158074,1736997089807,-500.0,0.00043013,18]
[349158075,1736997089816,-500.0,0.00043013,18]
[349158076,1736997089826,-596.71,0.00043013,18]
[349158077,1736997089836,-500.0,0.00043013,18]
[349158078,1736997089846,-500.0,0.00043013,18]
[349158079,1736997089856,-500.0,0.00043013,18]
[349158080,1736997089866,-501.09359074,0.00043013,18]
[349158081,1736997089876,-596.71,0.00043013,18]
[349158082,1736997089886,-500.0,0.00043013,18]
[349158083,1736997089896,-500.0,0.00043013,18]
[349158084,1736997089906,-500.0,0.00043013,18]
[349158085,1736997089917,-596.71,0.00043013,18]
[349158086,1736997089927,-500.0,0.00043013,18]
[349158087,1736997089937,-500.0,0.00043013,18]
[349158088,1736997089947,-500.0,0.00043013,18]
[349158089,1736997089957,-596.71,0.00043013,18]
[349158090,1736997089966,-500.0,0.00043013,18]
[349158091,1736997089976,-500.0,0.00043013,18]
[349158092,1736997089986,-500.0,0.00043013,18]
[349158093,1736997089995,-500.0,0.00043013,18]
[349158094,1736997090005,-500.0,0.00043013,18]
[349158095,1736997090015,-520.74676813,0.00043013,18]
[349158096,1736997090024,-500.0,0.00043013,18]
[349158097,1736997090033,-157.93077876,0.00043013,18]
[349158098,1736997090043,-500.0,0.00043013,18]
[349158099,1736997090052,-500.0,0.00043013,18]
[349158100,1736997090062,-500.0,0.00043013,18]
[349158101,1736997090071,-500.0,0.00043013,18]
[349158102,1736997090081,-501.65765521,0.00043013,18]
[349158103,1736997090091,-1884.1170778,0.00043014,2]
[349158104,1736997090101,-738.54001065,0.00043014,2]
[349158105,1736997090110,-4317.1940525,0.00043043,2]
[349158106,1736997090120,-502.71765678,0.00043073,2]
[349158107,1736997090129,-2295.30439319,0.00043088,120]
[349158108,1736997090139,-152.915397,0.00043088,14]
[349158109,1736997090149,-152.915397,0.00043088,14]
[349158110,1736997090159,-151.0,0.00043088,14]
[349158111,1736997090168,-1411.884371,0.00043088,14]
[349158112,1736997090178,-1411.884371,0.00043088,14]
[349158113,1736997090187,-400.58,0.000431,60]
[349158114,1736997090197,-205.95330717,0.000431,9]
[349158115,1736997090207,-2740.55573392,0.00043133,120]
[349158116,1736997090216,-844.27011998,0.00043133,120]
[349158117,1736997090226,-2295.30439319,0.00043141,120]
[349158118,1736997090235,-305.08417868,0.0004315,120]
[349158119,1736997090246,-2295.30439319,0.00043162,120]
[349158120,1736997090255,-305.08417868,0.00043167,120]
[349158121,1736997090265,-200.0,0.00043178,120]
[349158122,1736997090275,-844.27011998,0.00043181,120]
[349158123,1736997090284,-844.27011998,0.00043185,120]
[349158124,1736997090294,-31673.8813195,0.00043191,37]
[349158125,1736997090305,-2080.96,0.00043191,18]
[349158126,1736997090315,-530.32873372,0.00043191,18]
[349158127,1736997090325,-500.0,0.00043191,18]
[349158128,1736997090334,-1337.0,0.00043191,18]
[349158129,1736997090345,-500.0,0.00043191,18]
[349158130,1736997090354,-1840.2,0.00043191,18]
[349158131,1736997090364,-2740.55573392,0.00043192,120]
[349158132,1736997090373,-200.0,0.00043215,120]
[349158133,1736997090383,-200.0,0.00043216,120]
[349158134,1736997090392,-2295.30439319,0.00043218,120]
[349158135,1736997090402,-305.08417868,0.00043225,120]
[349158136,1736997090411,-844.27011998,0.00043246,120]
[349158137,1736997090421,-305.08417868,0.00043268,120]
[349158138,1736997090431,-844.27011998,0.00043269,120]
[349158139,1736997090440,-2740.55573392,0.00043272,120]
[349158140,1736997090450,-500.0,0.00043285,18]
[349158141,1736997090460,-1746.31,0.00043285,18]
[349158142,1736997090470,-546.06,0.00043285,18]
[349158143,1736997090479,-500.0,0.00043285,18]
[349158144,1736997090490,-500.0,0.00043285,18]
[349158145,1736997090502,-628.22,0.00043285,18]
[349158146,1736997090512,-702.09,0.00043285,18]
[349158147,1736997090522,-512.34,0.00043285,18]
[349158148,1736997090534,-1073.21,0.00043285,18]
[349158149,1736997090544,-578.95,0.00043285,18]
[349158150,1736997090553,-1100.96,0.00043285,18]
[349158151,1736997090564,-1176.07,0.00043285,18]
[349158152,1736997090575,-2487.26,0.00043285,18]
[349158153,1736997090586,-2740.55573392,0.00043287,120]
[349158154,1736997090596,-200.0,0.00043289,120]
[349158155,1736997090605,-305.08417868,0.00043334,120]
[349158156,1736997090615,-2295.30439319,0.00043356,120]
[349158157,1736997090624,-2740.55573392,0.00043377,120]
[349158158,1736997090634,-200.0,0.00043384,120]
[349158159,1736997090643,-150.5,0.0004346,120]
[349158160,1736997090653,-500.0,0.00043468,18]
[349158161,1736997090662,-500.0,0.00043468,18]
[349158162,1736997090672,-500.0,0.00043468,18]
[349158163,1736997090682,-687.29,0.00043468,18]
[349158164,1736997090691,-938.17,0.00043468,18]
[349158165,1736997090700,-500.0,0.00043468,18]
[349158166,1736997090709,-500.0,0.00043468,18]
[349158167,1736997090719,-500.0,0.00043468,18]
[349158168,1736997090728,-721.05,0.00043468,18]
[349158169,1736997090738,-1479.37,0.00043468,18]
[349158170,1736997090747,-384.0278809,0.00043468,18]
[349158171,1736997090762,-430.9421191,0.00043468,18]
[349158172,1736997090772,-1847.38,0.00043468,18]
[349158173,1736997090781,-591.68,0.00043468,18]
[349158174,1736997090791,-596.71,0.00043468,18]
[349158175,1736997090800,-1208.72,0.00043469,18]
[349158176,1736997090810,-1366.15,0.00043469,18]
[349158177,1736997090820,-955.51,0.00043469,18]
[349158178,1736997090829,-1872.5,0.00043469,18]
[349158179,1736997090838,-1728.55,0.00043469,18]
[349158180,1736997090848,-150.5,0.0004347,120]
[349158181,1736997090857,-175.26,0.0004347,120]
[349158182,1736997090867,-1644.8347233,0.0004347,2]
[349158183,1736997090876,-1405.5523688,0.0004347,2]
[349158184,1736997090885,-1166.2700142,0.0004347,2]
[349158185,1736997090895,-926.9876597,0.0004347,2]
[349158186,1736997090905,-687.7053052,0.0004347,2]
[349158187,1736997090914,-3779.2985446,0.0004347,2]
[349158188,1736997090924,-3241.4030366,0.0004347,2]
[349158189,1736997090935,-2703.5075287,0.0004347,2]
[349158190,1736997090944,-2165.6120207,0.0004347,2]
[349158191,1736997090954,-1627.7165127,0.0004347,2]
[349158192,1736997090963,-490.47765377,0.00043473,10]
[349158193,1736997090972,-500.0,0.00043473,10]
[349158194,1736997090982,-500.0,0.00043473,10]
[349158195,1736997090991,-500.0,0.00043473,10]
[349158196,1736997091001,-500.0,0.00043473,10]
[349158197,1736997091010,-150.5,0.0004348,120]
[349158198,1736997091020,-150.5,0.0004348,120]
[349158199,1736997091029,-225.0,0.00043492,120]
[349158200,1736997091039,-500.0,0.00043496,18]
[349158201,1736997091048,-518.21,0.00043496,18]
[349158202,1736997091058,-500.0,0.00043496,18]
[349158203,1736997091069,-500.0,0.00043496,18]
[349158204,1736997091079,-1998.87,0.00043496,18]
[349158205,1736997091088,-1244.12,0.00043496,18]
[349158206,1736997091098,-500.0,0.00043496,18]
[349158207,1736997091107,-504.95,0.00043496,18]
[349158208,1736997091117,-1087.53,0.00043496,18]
[349158209,1736997091127,-221.92975098,0.00043496,18]
[349158210,1736997091136,-500.0,0.00043496,18]
[349158211,1736997091146,-1180.95,0.00043496,18]
[349158212,1736997091156,-500.0,0.00043496,18]
[349158213,1736997091166,-500.0,0.00043496,18]
[349158214,1736997091175,-542.83,0.00043496,18]
[349158215,1736997091184,-902.36,0.00043496,18]
[349158216,1736997091194,-500.0,0.00043496,18]
[349158217,1736997091202,-887.63,0.00043496,18]
[349158218,1736997091212,-1545.24,0.00043496,18]
[349158219,1736997091221,-500.0,0.00043496,18]
[349158220,1736997091231,-738.39,0.00043496,18]
[349158221,1736997091241,-500.0,0.00043496,18]
[349158222,1736997091250,-1679.02,0.00043496,18]
[349158223,1736997091260,-866.38,0.00043496,18]
[349158224,1736997091269,-997.41,0.00043496,18]
[349158225,1736997091279,-611.76,0.00043496,18]
[349158226,1736997091288,-774.9,0.00043496,18]
[349158227,1736997091297,-2077.34,0.00043496,18]
[349158228,1736997091307,-611.61753981,0.00043496,18]
[349158229,1736997091317,-895.66,0.00043496,18]
[349158230,1736997091326,-1036.79,0.00043496,18]
[349158231,1736997091336,-780.33,0.00043496,18]
[349158232,1736997091345,-2064.77,0.00043496,18]
[349158233,1736997091355,-827.69,0.00043496,18]
[349158234,1736997091364,-591.22,0.00043496,18]
[349158235,1736997091374,-500.0,0.00043496,18]
[349158236,1736997091383,-4571.0,0.00043496,18]
[349158237,1736997091393,-1632.57,0.00043496,18]
[349158238,1736997091402,-1126.09,0.00043496,18]
[349158239,1736997091412,-2513.2,0.00043496,18]
[349158240,1736997091421,-2404.96,0.00043496,18]
[349158241,1736997091430,-543.85,0.00043496,18]
[349158242,1736997091440,-1203.92,0.00043496,18]
[349158243,1736997091449,-783.95,0.00043496,18]
[349158244,1736997091459,-923.56,0.00043496,18]
[349158245,1736997091468,-500.0,0.00043496,18]
[349158246,1736997091477,-500.0,0.00043496,18]
[349158247,1736997091489,-581.44946157,0.00043496,18]
[349158248,1736997091500,-2728.3,0.00043496,18]
[349158249,1736997091510,-1799.19,0.00043496,18]
[349158250,1736997091519,-504.72157945,0.00043496,18]
[349158251,1736997091528,-787.31,0.00043496,18]
[349158252,1736997091538,-500.0,0.00043496,18]
[349158253,1736997091548,-2080.96,0.00043497,18]
[349158254,1736997091557,-2080.96,0.00043497,18]
[349158255,1736997091568,-1208.72,0.00043497,18]
[349158256,1736997091577,-500.0,0.00043497,18]
[349158257,1736997091587,-500.0,0.00043497,18]
[349158258,1736997091596,-500.0,0.00043497,18]
[349158259,1736997091605,-1366.15,0.00043497,18]
[349158260,1736997091614,-518.21,0.00043497,18]
[349158261,1736997091624,-500.0,0.00043497,18]
[349158262,1736997091633,-500.0,0.00043497,18]
[349158263,1736997091643,-500.0,0.00043497,18]
[349158264,1736997091653,-500.0,0.00043497,18]
[349158265,1736997091662,-150.695831,0.00043497,18]
[349158266,1736997091672,-500.0,0.00043497,18]
[349158267,1736997091682,-500.0,0.00043497,18]
[349158268,1736997091691,-1746.31,0.00043497,18]
[349158269,1736997091701,-1746.31,0.00043497,18]
[349158270,1736997091710,-1998.87,0.00043497,18]
[349158271,1736997091719,-1244.12,0.00043497,18]
[349158272,1736997091729,-955.51,0.00043497,18]
[349158273,1736997091739,-500.0,0.00043497,18]
[349158274,1736997091748,-504.95,0.00043497,18]
[349158275,1736997091757,-500.0,0.00043497,18]
[349158276,1736997091768,-500.0,0.00043497,18]
[349158277,1736997091777,-1087.53,0.00043497,18]
[349158278,1736997091787,-1872.5,0.00043497,18]
[349158279,1736997091796,-500.0,0.00043497,18]
[349158280,1736997091806,-546.06,0.00043497,18]
[349158281,1736997091815,-546.06,0.00043497,18]
[349158282,1736997091825,-160.387823,0.00043497,18]
[349158283,1736997091835,-500.0,0.00043497,18]
[349158284,1736997091844,-500.0,0.00043497,18]
[349158285,1736997091854,-1180.95,0.00043497,18]
[349158286,1736997091864,-500.0,0.00043497,18]
[349158287,1736997091876,-687.29,0.00043497,18]
[349158288,1736997091886,-687.29,0.00043497,18]
[349158289,1736997091895,-500.0,0.00043497,18]
[349158290,1736997091905,-1728.55,0.00043497,18]
[349158291,1736997091915,-542.83,0.00043497,18]
[349158292,1736997091926,-902.36,0.00043497,18]
[349158293,1736997091936,-500.0,0.00043497,18]
[349158294,1736997091946,-887.63,0.00043497,18]
[349158295,1736997091957,-1545.24,0.00043497,18]
[349158296,1736997091966,-938.17,0.00043497,18]
[349158297,1736997091977,-938.17,0.00043497,18]
[349158298,1736997091987,-500.0,0.00043497,18]
[349158299,1736997091997,-500.0,0.00043497,18]
[349158300,1736997092007,-500.0,0.00043497,18]
[349158301,1736997092017,-500.0,0.00043497,18]
[349158302,1736997092026,-738.39,0.00043497,18]
[349158303,1736997092037,-247.69175515,0.00043497,18]
[349158304,1736997092046,-1679.02,0.00043497,18]
[349158305,1736997092066,-500.0,0.00043497,18]
[349158306,1736997092074,-500.0,0.00043497,18]
[349158307,1736997092084,-500.0,0.00043497,18]
[349158308,1736997092094,-866.38,0.00043497,18]
[349158309,1736997092108,-500.0,0.00043497,18]
[349158310,1736997092118,-1337.0,0.00043497,18]
[349158311,1736997092127,-1337.0,0.00043497,18]
[349158312,1736997092240,-611.76,0.00043497,18]
[349158313,1736997092252,-997.41,0.00043497,18]
[349158314,1736997092262,-628.22,0.00043497,18]
[349158315,1736997092272,-611.76,0.00043497,18]
[349158316,1736997092283,-997.41,0.00043497,18]
[349158317,1736997092293,-628.22,0.00043497,18]
[349158318,1736997092303,-500.0,0.00043497,18]
[349158319,1736997092312,-500.0,0.00043497,18]
[349158320,1736997092323,-774.9,0.00043497,18]
[349158321,1736997092333,-500.0,0.00043497,18]
[349158322,1736997092343,-500.0,0.00043497,18]
[349158323,1736997092353,-2077.34,0.00043497,18]
[349158324,1736997092363,-702.09,0.00043497,18]
[349158325,1736997092373,-702.09,0.00043497,18]
[349158326,1736997092383,-895.66,0.00043497,18]
[349158327,1736997092393,-1036.79,0.00043497,18]
[349158328,1736997092403,-1036.79,0.00043497,18]
[349158329,1736997092414,-780.33,0.00043497,18]
[349158330,1736997092424,-512.34,0.00043497,18]
[349158331,1736997092434,-780.33,0.00043497,18]
[349158332,1736997092444,-512.34,0.00043497,18]
[349158333,1736997092454,-721.05,0.00043497,18]
[349158334,1736997092464,-721.05,0.00043497,18]
[349158335,1736997092474,-2064.77,0.00043497,18]
[349158336,1736997092484,-827.69,0.00043497,18]
[349158337,1736997092497,-591.22,0.00043497,18]
[349158338,1736997092507,-827.69,0.00043497,18]
[349158339,1736997092517,-500.0,0.00043497,18]
[349158340,1736997092527,-500.0,0.00043497,18]
[349158341,1736997092537,-4571.0,0.00043497,18]
[349158342,1736997092548,-500.0,0.00043497,18]
[349158343,1736997092558,-1632.57,0.00043497,18]
[349158344,1736997092570,-1632.57,0.00043497,18]
[349158345,1736997092580,-500.0,0.00043497,18]
[349158346,1736997092591,-1126.09,0.00043497,18]
[349158347,1736997092601,-1126.09,0.00043497,18]
[349158348,1736997092611,-1479.37,0.00043497,18]
[349158349,1736997092621,-1479.37,0.00043497,18]
[349158350,1736997092631,-1073.21,0.00043497,18]
[349158351,1736997092641,-1073.21,0.00043497,18]
[349158352,1736997092650,-2513.2,0.00043497,18]
[349158353,1736997092660,-2513.2,0.00043497,18]
[349158354,1736997092669,-2404.96,0.00043497,18]
[349158355,1736997092679,-2404.96,0.00043497,18]
[349158356,1736997092689,-578.95,0.00043497,18]
[349158357,1736997092699,-578.95,0.00043497,18]
[349158358,1736997092708,-814.97,0.00043497,18]
[349158359,1736997092718,-814.97,0.00043497,18]
[349158360,1736997092728,-543.85,0.00043497,18]
[349158361,1736997092737,-1840.2,0.00043497,18]
[349158362,1736997092747,-1840.2,0.00043497,18]
[349158363,1736997092756,-1203.92,0.00043497,18]
[349158364,1736997092766,-1203.92,0.00043497,18]
[349158365,1736997092777,-1100.96,0.00043497,18]
[349158366,1736997092786,-1100.96,0.00043497,18]
[349158367,1736997092796,-783.95,0.00043497,18]
[349158368,1736997092805,-923.56,0.00043497,18]
[349158369,1736997092815,-923.56,0.00043497,18]
[349158370,1736997092825,-1847.38,0.00043497,18]
[349158371,1736997092834,-1847.38,0.00043497,18]
[349158372,1736997092844,-1176.07,0.00043497,18]
[349158373,1736997092853,-1176.07,0.00043497,18]
[349158374,1736997092864,-500.0,0.00043497,18]
[349158375,1736997092873,-500.0,0.00043497,18]
[349158376,1736997092883,-500.0,0.00043497,18]
[349158377,1736997092893,-2728.3,0.00043497,18]
[349158378,1736997092902,-2728.3,0.00043497,18]
[349158379,1736997092912,-591.68,0.00043497,18]
[349158380,1736997092922,-591.68,0.00043497,18]
[349158381,1736997092932,-1799.19,0.00043497,18]
[349158382,1736997092941,-2487.26,0.00043497,18]
[349158383,1736997092951,-2487.26,0.00043497,18]
[349158384,1736997092961,-787.31,0.00043497,18]
[349158385,1736997092970,-787.31,0.00043497,18]
[349158386,1736997092980,-596.71,0.00043497,18]
[349158387,1736997092990,-596.71,0.00043497,18]
[349158388,1736997093000,-500.0,0.00043497,18]
[349158389,1736997093009,-143129.25175974,0.00043498,30]
[349158390,1736997329336,160.45,0.00010137,2]
[349158393,1736997769724,181.56,0.000231,120]
[349158394,1736997907740,401271.87577928,0.00012,2]
[349158406,1736998160492,171.35,0.00010137,2]
[349158422,1736998232385,-6519.52257405,0.00021926,2]
[349158423,1736998232395,-1704.0,0.000236,2]
[349158424,1736998232404,-500.0,0.00027344,2]
[349158425,1736998232415,-151.0,0.0003,120]
[349158426,1736998232425,-151.0,0.00032219,120]
[349158427,1736998232435,-178.52,0.00033132,2]
[349158428,1736998232446,-151.0,0.00034438,120]
[349158429,1736998232455,-151.0,0.00036658,120]
[349158430,1736998232465,-151.0,0.00038877,120]
[349158431,1736998232475,-150.0,0.00039299,2]
[349158432,1736998232485,-3897.0,0.00039299,2]
[349158433,1736998232498,-1000.0,0.00039452,120]
[349158434,1736998232508,-1092.04,0.00039452,120]
[349158435,1736998232518,-152.0,0.00039558,3]
[349158436,1736998232528,-368.35,0.00039726,2]
[349158437,1736998232538,-9471.3550587,0.0004,2]
[349158438,1736998232547,-4155.0,0.00040827,117]
[349158439,1736998232556,-299.99,0.00040827,120]
[349158440,1736998232566,-150.99,0.00040827,2]
[349158441,1736998232575,-151.0,0.00041096,120]
[349158442,1736998232585,-250.0,0.00041354,120]